[Event "Open Gent 2023 Unrated"]
[Site "Gent, Belgium"]
[Date "2023.07.15"]
[Round "1.1"]
[White "Froeyman, Helmut"]
[Black "Dhuyvetter, Koen"]
[Result "1-0"]
[TimeControl "90'+30''"]
[WhiteTitle "FM"]
[WhiteElo "2308"]
[BlackElo "1705"]

1. e4 {[%clk 01:28:51]} {[%emt 00:02:07]} e5 {[%clk 01:30:59]} {[%emt
00:00:02]} 2. Nf3 {[%clk 01:29:13]} {[%emt 00:00:07]} Nc6 {[%clk 01:31:25]}
{[%emt 00:00:05]} 3. Bb5 {[%clk 01:29:36]} {[%emt 00:00:07]} Nf6 {[%clk
01:31:33]} {[%emt 00:00:24]} 4. O-O {[%clk 01:29:34]} {[%emt 00:00:30]} d6
{[%clk 01:31:22]} {[%emt 00:00:41]} 5. d4 {[%clk 01:27:30]} {[%emt 00:02:33]}
exd4 {[%clk 01:30:11]} {[%emt 00:01:43]} 6. Nxd4 {[%clk 01:23:41]} {[%emt
00:04:19]} Bd7 {[%emt 00:01:12]} 7. Nc3 {[%clk 01:22:43]} {[%emt 00:00:31]} Be7
{[%clk 01:29:44]} {[%emt 00:01:11]} 8. Nxc6 {[%clk 01:21:27]} {[%emt 00:01:46]}
Bxc6 {[%clk 01:26:16]} {[%emt 00:03:59]} 9. Bxc6+ {[%clk 01:18:35]} {[%emt
00:03:22]} bxc6 {[%clk 01:26:44]} {[%emt 00:00:02]} 10. Re1 {[%clk 01:05:31]}
{[%emt 00:13:33]} Nd7 {[%clk 01:23:49]} {[%emt 00:03:25]} 11. Be3 {[%clk
01:01:16]} {[%emt 00:04:44]} O-O {[%clk 01:20:29]} {[%emt 00:03:51]} 12. Qd2
{[%clk 00:58:05]} {[%emt 00:03:41]} Nb6 {[%clk 01:15:35]} {[%emt 00:05:24]} 13.
Qd3 {[%clk 00:47:22]} {[%emt 00:11:12]} Bf6 {[%clk 01:12:22]} {[%emt 00:03:44]}
14. Rad1 {[%clk 00:46:11]} {[%emt 00:01:40]} Re8 {[%clk 01:10:20]} {[%emt
00:02:32]} 15. f3 {[%clk 00:44:07]} {[%emt 00:02:33]} Qd7 {[%clk 01:02:44]}
{[%emt 00:08:07]} 16. b3 {[%clk 00:42:59]} {[%emt 00:01:38]} Qe6 {[%clk
00:57:25]} {[%emt 00:05:48]} 17. a4 {[%clk 00:35:43]} {[%emt 00:07:47]} Bxc3
{[%clk 00:50:37]} {[%emt 00:07:18]} 18. Qxc3 {[%clk 00:36:04]} {[%emt
00:00:08]} c5 {[%clk 00:50:53]} {[%emt 00:00:14]} 19. Bf2 {[%clk 00:33:51]}
{[%emt 00:02:43]} f5 {[%clk 00:45:41]} {[%emt 00:05:43]} 20. e5 {[%clk
00:31:33]} {[%emt 00:02:48]} Qg6 {[%clk 00:41:23]} {[%emt 00:04:49]} 21. a5
{[%clk 00:27:44]} {[%emt 00:04:19]} Nd7 {[%clk 00:39:53]} {[%emt 00:02:00]} 22.
exd6 {[%clk 00:27:06]} {[%emt 00:01:08]} cxd6 {[%clk 00:38:19]} {[%emt
00:02:04]} 23. Qc4+ {[%clk 00:26:06]} {[%emt 00:01:29]} Kh8 {[%clk 00:36:39]}
{[%emt 00:02:10]} 24. Bg3 {[%clk 00:20:03]} {[%emt 00:06:33]} Ne5 {[%clk
00:32:08]} {[%emt 00:05:02]} 25. Qd5 {[%clk 00:18:58]} {[%emt 00:01:34]} Nf7
{[%clk 00:29:27]} {[%emt 00:03:12]} 26. Qc6 {[%clk 00:17:57]} {[%emt 00:01:29]}
Red8 {[%clk 00:26:11]} {[%emt 00:03:48]} 27. Re7 {[%clk 00:16:49]} {[%emt
00:01:37]} Rac8 {[%clk 00:23:30]} {[%emt 00:03:12]} 28. Qd5 {[%clk 00:16:18]}
{[%emt 00:01:00]} Nh6 {[%clk 00:22:16]} {[%emt 00:01:45]} 29. Re6 {[%clk
00:12:56]} {[%emt 00:03:51]} Qf7 {[%clk 00:21:50]} {[%emt 00:00:56]} 30. Rxd6
{[%clk 00:12:32]} {[%emt 00:00:54]} Rxd6 {[%clk 00:22:11]} {[%emt 00:00:09]} 31.
Qxd6 {[%clk 00:12:19]} {[%emt 00:00:42]} c4 {[%clk 00:21:39]} {[%emt 00:01:02]}
32. b4 {[%clk 00:12:20]} {[%emt 00:00:28]} c3 {[%clk 00:21:04]} {[%emt
00:01:05]} 33. Be5 {[%clk 00:12:08]} {[%emt 00:00:42]} Qc4 {[%clk 00:20:52]}
{[%emt 00:00:44]} 34. Qxh6 {[%clk 00:11:30]} {[%emt 00:01:08]} 1-0

[Event "Open Gent 2023 Unrated"]
[Site "Gent, Belgium"]
[Date "2023.07.15"]
[Round "1.3"]
[White "Oorebeek, Erwin"]
[Black "De Baets, Christof"]
[Result "1-0"]
[TimeControl "90'+30''"]
[WhiteElo "2199"]
[BlackElo "1681"]

1. d4 {[%clk 01:30:50]} {[%emt 00:00:10]} f5 {[%clk 01:29:32]} {[%emt
00:01:28]} 2. Nc3 {[%clk 01:31:05]} {[%emt 00:00:14]} Nf6 {[%clk 01:29:37]}
{[%emt 00:00:26]} 3. Bg5 {[%clk 01:31:29]} {[%emt 00:00:05]} d5 {[%clk
01:29:56]} {[%emt 00:00:11]} 4. Bxf6 {[%clk 01:31:46]} {[%emt 00:00:12]} exf6
{[%clk 01:30:09]} {[%emt 00:00:17]} 5. e3 {[%clk 01:32:12]} {[%emt 00:00:04]}
Be6 {[%clk 01:27:37]} {[%emt 00:03:02]} 6. Bd3 {[%clk 01:31:46]} {[%emt
00:00:55]} Nc6 {[%clk 01:26:07]} {[%emt 00:02:00]} 7. a3 {[%clk 01:30:51]}
{[%emt 00:01:25]} Be7 {[%clk 01:25:41]} {[%emt 00:00:56]} 8. Nge2 {[%clk
01:30:26]} {[%emt 00:00:54]} g6 {[%clk 01:25:34]} {[%emt 00:00:36]} 9. h4
{[%clk 01:28:28]} {[%emt 00:02:28]} Qd7 {[%clk 01:25:00]} {[%emt 00:01:05]} 10.
b4 {[%clk 01:25:50]} {[%emt 00:03:08]} a6 {[%clk 01:23:43]} {[%emt 00:01:48]}
11. Na4 {[%clk 01:19:08]} {[%emt 00:07:12]} b6 {[%clk 01:17:50]} {[%emt
00:06:23]} 12. Nb2 {[%clk 01:13:37]} {[%emt 00:06:00]} b5 {[%clk 01:11:10]}
{[%emt 00:07:11]} 13. c3 {[%clk 01:13:36]} {[%emt 00:00:31]} Nd8 {[%clk
01:10:05]} {[%emt 00:01:36]} 14. a4 {[%clk 01:13:29]} {[%emt 00:00:36]} c6
{[%clk 01:08:27]} {[%emt 00:02:09]} 15. Nf4 {[%clk 01:09:30]} {[%emt 00:04:28]}
Kf7 {[%clk 01:01:30]} {[%emt 00:07:27]} 16. axb5 {[%clk 00:58:24]} {[%emt
00:11:37]} cxb5 {[%clk 01:01:39]} {[%emt 00:00:20]} 17. Be2 {[%clk 00:58:41]}
{[%emt 00:00:13]} Bd6 {[%clk 00:50:37]} {[%emt 00:11:33]} 18. Nbd3 {[%clk
00:56:59]} {[%emt 00:02:12]} Nb7 {[%clk 00:48:12]} {[%emt 00:02:55]} 19. Bf3
{[%clk 00:49:42]} {[%emt 00:07:47]} Bc7 {[%clk 00:42:39]} {[%emt 00:06:03]} 20.
Qb3 {[%clk 00:48:23]} {[%emt 00:01:48]} Rhd8 {[%clk 00:42:25]} {[%emt
00:00:44]} 21. O-O {[%clk 00:41:22]} {[%emt 00:07:30]} Qc6 {[%clk 00:37:18]}
{[%emt 00:05:38]} 22. Rfd1 {[%clk 00:39:26]} {[%emt 00:02:26]} Kg7 {[%clk
00:32:39]} {[%emt 00:05:08]} 23. Nxe6+ {[%clk 00:36:36]} {[%emt 00:03:21]} Qxe6
{[%clk 00:32:54]} {[%emt 00:00:15]} 24. Nc5 {[%clk 00:36:53]} {[%emt 00:00:13]}
Qc6 {[%clk 00:31:56]} {[%emt 00:01:28]} 25. g3 {[%clk 00:36:56]} {[%emt
00:00:28]} Rd6 {[%clk 00:26:02]} {[%emt 00:06:24]} 26. Ra2 {[%clk 00:36:35]}
{[%emt 00:00:50]} a5 {[%clk 00:24:17]} {[%emt 00:02:16]} 27. bxa5 {[%clk
00:32:32]} {[%emt 00:04:32]} Rxa5 {[%clk 00:24:42]} {[%emt 00:00:06]} 28. Nxb7
{[%clk 00:31:52]} {[%emt 00:01:10]} Qxb7 {[%clk 00:25:01]} {[%emt 00:00:10]} 29.
Rxa5 {[%clk 00:31:27]} {[%emt 00:00:55]} Bxa5 {[%clk 00:25:24]} {[%emt
00:00:07]} 30. Rc1 {[%clk 00:26:36]} {[%emt 00:05:20]} Qc6 {[%clk 00:24:08]}
{[%emt 00:01:47]} 31. Qa3 {[%clk 00:24:49]} {[%emt 00:02:17]} Bd8 {[%clk
00:24:28]} {[%emt 00:00:09]} 32. Qb4 {[%clk 00:23:26]} {[%emt 00:01:53]} Qa6
{[%clk 00:23:07]} {[%emt 00:01:52]} 33. Be2 {[%clk 00:22:57]} {[%emt 00:00:58]}
Ba5 {[%clk 00:22:35]} {[%emt 00:01:03]} 34. Qc5 {[%clk 00:21:03]} {[%emt
00:02:24]} Qb6 {[%clk 00:20:57]} {[%emt 00:02:09]} 35. Bxb5 {[%clk 00:21:04]}
{[%emt 00:00:29]} Qxc5 {[%clk 00:20:08]} {[%emt 00:01:18]} 36. dxc5 {[%clk
00:21:25]} {[%emt 00:00:08]} Rd8 {[%clk 00:20:17]} {[%emt 00:00:22]} 37. Kf1
{[%clk 00:18:39]} {[%emt 00:03:15]} Kf7 {[%clk 00:20:31]} {[%emt 00:00:17]} 38.
Ke2 {[%clk 00:17:54]} {[%emt 00:01:15]} Rc8 {[%clk 00:20:19]} {[%emt 00:00:41]}
39. c6 {[%clk 00:18:16]} {[%emt 00:00:08]} Ke6 {[%clk 00:20:33]} {[%emt
00:00:17]} 40. Kd3 {[%clk 00:18:39]} {[%emt 00:00:06]} Kd6 {[%clk 00:19:54]}
{[%emt 00:01:09]} 41. c4 {[%clk 00:14:59]} {[%emt 00:04:10]} Kc5 {[%clk
00:18:21]} {[%emt 00:02:02]} 42. Ba4 {[%clk 00:15:19]} {[%emt 00:00:10]} Rc7
{[%clk 00:15:17]} {[%emt 00:03:35]} 43. cxd5+ {[%clk 00:15:27]} {[%emt
00:00:22]} Kxd5 {[%clk 00:15:36]} {[%emt 00:00:09]} 44. Rb1 {[%clk 00:15:42]}
{[%emt 00:00:16]} Kd6 {[%clk 00:14:57]} {[%emt 00:01:09]} 45. Kc4 {[%clk
00:15:57]} {[%emt 00:00:15]} Ra7 {[%clk 00:12:39]} {[%emt 00:02:48]} 46. Rd1+
{[%clk 00:14:39]} {[%emt 00:01:48]} Ke7 {[%clk 00:12:55]} {[%emt 00:00:14]} 47.
Kc5 {[%clk 00:12:52]} {[%emt 00:02:17]} Bd8 {[%clk 00:11:57]} {[%emt 00:01:28]}
48. Bb5 {[%clk 00:13:12]} {[%emt 00:00:10]} Ba5 {[%clk 00:11:09]} {[%emt
00:01:17]} 49. Rd5 {[%clk 00:10:41]} {[%emt 00:03:01]} Bd8 {[%clk 00:10:49]}
{[%emt 00:00:51]} 50. h5 {[%clk 00:10:53]} {[%emt 00:00:18]} Ba5 {[%clk
00:10:51]} {[%emt 00:00:28]} 51. hxg6 {[%clk 00:11:19]} {[%emt 00:00:04]} hxg6
{[%clk 00:11:13]} {[%emt 00:00:08]} 52. Rd1 {[%clk 00:11:46]} {[%emt 00:00:02]}
Ke6 {[%clk 00:06:58]} {[%emt 00:04:44]} 53. f4 {[%clk 00:11:53]} {[%emt
00:00:23]} Ke7 {[%clk 00:04:14]} {[%emt 00:03:14]} 54. Rh1 {[%clk 00:12:15]}
{[%emt 00:00:08]} Rc7 {[%clk 00:04:22]} {[%emt 00:00:22]} 55. Rh8 {[%clk
00:11:37]} {[%emt 00:01:07]} Ke6 {[%clk 00:03:36]} {[%emt 00:01:16]} 56. Ra8
{[%clk 00:11:15]} {[%emt 00:00:52]} Bd2 {[%clk 00:02:29]} {[%emt 00:01:37]} 57.
Bc4+ {[%clk 00:11:29]} {[%emt 00:00:15]} Ke7 {[%clk 00:02:28]} {[%emt
00:00:32]} 58. Kb6 {[%clk 00:11:46]} {[%emt 00:00:13]} 1-0

[Event "Open Gent 2023 Unrated"]
[Site "Gent, Belgium"]
[Date "2023.07.15"]
[Round "1.4"]
[White "Lindeboom, Fokke"]
[Black "Goormachtigh, Johan"]
[Result "0-1"]
[TimeControl "90'+30''"]
[BlackTitle "FM"]
[WhiteElo "1671"]
[BlackElo "2183"]

1. e4 {[%clk 01:30:55]} {[%emt 00:00:04]} c5 {[%clk 01:30:39]} {[%emt
00:00:22]} 2. d4 {[%clk 01:31:06]} {[%emt 00:00:19]} cxd4 {[%clk 01:31:00]}
{[%emt 00:00:09]} 3. c3 {[%clk 01:31:27]} {[%emt 00:00:09]} Nf6 {[%clk
01:30:23]} {[%emt 00:01:07]} 4. e5 {[%clk 01:31:19]} {[%emt 00:00:39]} Nd5
{[%clk 01:30:46]} {[%emt 00:00:06]} 5. cxd4 {[%clk 01:31:36]} {[%emt 00:00:12]}
e6 {[%clk 01:30:31]} {[%emt 00:00:46]} 6. Nf3 {[%clk 01:31:30]} {[%emt
00:00:37]} d6 {[%clk 01:30:45]} {[%emt 00:00:16]} 7. Bc4 {[%clk 01:30:12]}
{[%emt 00:01:48]} Be7 {[%clk 01:29:06]} {[%emt 00:02:08]} 8. O-O {[%clk
01:28:46]} {[%emt 00:01:56]} O-O {[%clk 01:29:12]} {[%emt 00:00:24]} 9. Qe2
{[%clk 01:20:40]} {[%emt 00:08:35]} b6 {[%clk 01:24:46]} {[%emt 00:04:57]} 10.
Rd1 {[%clk 01:14:26]} {[%emt 00:06:44]} Bb7 {[%clk 01:15:21]} {[%emt 00:09:55]}
11. Nbd2 {[%clk 01:13:17]} {[%emt 00:01:39]} Nd7 {[%clk 01:09:25]} {[%emt
00:06:26]} 12. Ne4 {[%clk 01:06:24]} {[%emt 00:07:23]} dxe5 {[%clk 01:06:38]}
{[%emt 00:03:18]} 13. dxe5 {[%clk 01:04:43]} {[%emt 00:02:10]} Qc7 {[%clk
01:02:57]} {[%emt 00:04:11]} 14. Ng3 {[%clk 00:54:40]} {[%emt 00:10:33]} Rac8
{[%clk 00:44:40]} {[%emt 00:18:48]} 15. Bd2 {[%clk 00:49:55]} {[%emt 00:05:01]}
Qxc4 {[%clk 00:44:31]} {[%emt 00:00:52]} 16. Qe1 {[%clk 00:47:50]} {[%emt
00:02:36]} Nc5 {[%clk 00:43:25]} {[%emt 00:01:36]} 17. b3 {[%clk 00:45:26]}
{[%emt 00:02:55]} Qg4 {[%clk 00:42:42]} {[%emt 00:01:12]} 18. h3 {[%clk
00:44:38]} {[%emt 00:01:18]} Qg6 {[%clk 00:43:05]} {[%emt 00:00:07]} 19. Be3
{[%clk 00:42:00]} {[%emt 00:03:08]} Rfd8 {[%clk 00:37:03]} {[%emt 00:06:33]} 20.
Rd4 {[%clk 00:41:24]} {[%emt 00:01:06]} Nxe3 {[%clk 00:37:16]} {[%emt
00:00:17]} 21. Qxe3 {[%clk 00:41:30]} {[%emt 00:00:24]} Bxf3 {[%clk 00:33:47]}
{[%emt 00:03:59]} 0-1

[Event "Open Gent 2023 Unrated"]
[Site "Gent, Belgium"]
[Date "2023.07.15"]
[Round "2.1"]
[White "Feelders, Ad"]
[Black "Froeyman, Helmut"]
[Result "0-1"]
[TimeControl "90'+30''"]
[BlackTitle "FM"]
[WhiteElo "2002"]
[BlackElo "2308"]

1. e4 {[%clk 01:30:57]} {[%emt 00:00:03]} e5 {[%clk 01:30:56]} {[%emt
00:00:03]} 2. Nf3 {[%clk 01:31:12]} {[%emt 00:00:15]} Nc6 {[%clk 01:31:20]}
{[%emt 00:00:06]} 3. c3 {[%clk 01:31:26]} {[%emt 00:00:15]} Nf6 {[%clk
01:31:41]} {[%emt 00:00:09]} 4. d4 {[%clk 01:31:47]} {[%emt 00:00:09]} Nxe4
{[%clk 01:30:30]} {[%emt 00:01:42]} 5. d5 {[%clk 01:32:06]} {[%emt 00:00:10]}
Bc5 {[%clk 01:30:17]} {[%emt 00:00:43]} 6. dxc6 {[%clk 01:31:45]} {[%emt
00:00:50]} Bxf2+ {[%clk 01:30:39]} {[%emt 00:00:09]} 7. Ke2 {[%clk 01:32:03]}
{[%emt 00:00:12]} Bb6 {[%clk 01:31:05]} {[%emt 00:00:05]} 8. Qd5 {[%clk
01:28:29]} {[%emt 00:04:02]} Nf2 {[%clk 01:30:31]} {[%emt 00:01:05]} 9. Rg1
{[%clk 01:24:54]} {[%emt 00:04:04]} O-O {[%clk 01:28:52]} {[%emt 00:02:11]} 10.
cxb7 {[%clk 01:24:33]} {[%emt 00:00:50]} Bxb7 {[%clk 01:28:44]} {[%emt
00:00:39]} 11. Qxb7 {[%clk 01:24:54]} {[%emt 00:00:09]} Qf6 {[%clk 01:27:06]}
{[%emt 00:02:08]} 12. Na3 {[%clk 01:09:09]} {[%emt 00:16:14]} Rab8 {[%clk
01:21:23]} {[%emt 00:06:13]} 13. Qa6 {[%clk 01:03:52]} {[%emt 00:05:46]} e4
{[%clk 01:15:18]} {[%emt 00:06:36]} 14. Nd4 {[%clk 00:56:14]} {[%emt 00:08:07]}
c5 {[%clk 01:00:03]} {[%emt 00:15:45]} 15. Ndc2 {[%clk 00:45:03]} {[%emt
00:11:40]} d5 {[%clk 00:54:13]} {[%emt 00:06:21]} 16. Be3 {[%clk 00:38:08]}
{[%emt 00:07:23]} Ng4 {[%clk 00:48:34]} {[%emt 00:06:11]} 17. h3 {[%clk
00:34:42]} {[%emt 00:03:56]} Nxe3 {[%clk 00:38:48]} {[%emt 00:10:17]} 18. Nxe3
{[%clk 00:34:56]} {[%emt 00:00:15]} d4 {[%clk 00:29:37]} {[%emt 00:09:42]} 19.
Nd5 {[%clk 00:32:10]} {[%emt 00:03:15]} Qe5 {[%emt 00:10:22]} 0-1

[Event "Open Gent 2023 Unrated"]
[Site "Gent, Belgium"]
[Date "2023.07.15"]
[Round "2.3"]
[White "Blom, Yeb"]
[Black "Oorebeek, Erwin"]
[Result "0-1"]
[TimeControl "90'+30''"]
[WhiteElo "1920"]
[BlackElo "2199"]

1. c4 {[%clk 01:30:58]} {[%emt 01:04:07]} e5 {[%clk 01:29:26]} {[%emt
00:03:15]} 2. Nc3 {[%clk 01:30:49]} {[%emt 00:00:38]} Nf6 {[%clk 01:26:47]}
{[%emt 00:03:10]} 3. d3 {[%clk 01:29:51]} {[%emt 00:01:27]} c6 {[%clk
01:26:12]} {[%emt 00:01:06]} 4. Nf3 {[%clk 01:29:00]} {[%emt 00:01:21]} Qc7
{[%clk 01:23:21]} {[%emt 00:03:21]} 5. g3 {[%clk 01:28:57]} {[%emt 00:00:32]}
Bb4 {[%clk 01:23:11]} {[%emt 00:00:40]} 6. Bd2 {[%clk 01:23:38]} {[%emt
00:05:49]} O-O {[%clk 01:21:22]} {[%emt 00:02:19]} 7. Bg2 {[%clk 01:23:58]}
{[%emt 00:00:10]} Re8 {[%clk 01:19:47]} {[%emt 00:02:05]} 8. O-O {[%clk
01:24:02]} {[%emt 00:00:26]} a5 {[%clk 01:16:32]} {[%emt 00:03:45]} 9. a3
{[%clk 01:22:10]} {[%emt 00:02:22]} Be7 {[%clk 01:11:38]} {[%emt 00:05:24]} 10.
Rc1 {[%clk 01:21:51]} {[%emt 00:00:49]} Na6 {[%clk 01:10:55]} {[%emt 00:01:13]}
11. d4 {[%clk 01:15:41]} {[%emt 00:06:40]} d6 {[%clk 01:06:45]} {[%emt
00:04:40]} 12. d5 {[%clk 01:12:15]} {[%emt 00:03:57]} Bg4 {[%clk 01:04:57]}
{[%emt 00:02:18]} 13. Be3 {[%clk 01:04:21]} {[%emt 00:08:23]} Rad8 {[%clk
00:58:06]} {[%emt 00:07:21]} 14. Re1 {[%clk 00:58:35]} {[%emt 00:06:16]} Bh5
{[%clk 00:56:16]} {[%emt 00:02:20]} 15. h3 {[%clk 00:58:26]} {[%emt 00:00:38]}
Bg6 {[%clk 00:56:04]} {[%emt 00:00:42]} 16. Nd2 {[%clk 00:57:37]} {[%emt
00:01:20]} c5 {[%clk 00:47:49]} {[%emt 00:08:45]} 17. Nb5 {[%clk 00:53:21]}
{[%emt 00:04:46]} Qb8 {[%clk 00:47:19]} {[%emt 00:00:59]} 18. Qa4 {[%clk
00:48:47]} {[%emt 00:05:05]} b6 {[%clk 00:47:13]} {[%emt 00:00:36]} 19. Nc3
{[%clk 00:48:31]} {[%emt 00:00:45]} Nd7 {[%clk 00:44:36]} {[%emt 00:03:08]} 20.
Qb5 {[%clk 00:45:01]} {[%emt 00:04:01]} Qa7 {[%clk 00:37:27]} {[%emt 00:07:39]}
21. Nde4 {[%clk 00:41:54]} {[%emt 00:03:37]} h6 {[%clk 00:27:49]} {[%emt
00:10:08]} 22. Na2 {[%clk 00:39:32]} {[%emt 00:02:52]} Rf8 {[%clk 00:25:31]}
{[%emt 00:02:47]} 23. Nec3 {[%clk 00:37:16]} {[%emt 00:02:47]} f5 {[%clk
00:24:13]} {[%emt 00:01:48]} 24. Bd2 {[%clk 00:32:15]} {[%emt 00:05:31]} f4
{[%clk 00:18:53]} {[%emt 00:05:50]} 25. Qb3 {[%clk 00:32:06]} {[%emt 00:00:39]}
Nc7 {[%clk 00:18:58]} {[%emt 00:00:25]} 26. Na4 {[%clk 00:27:06]} {[%emt
00:05:30]} Bg5 {[%clk 00:16:05]} {[%emt 00:03:22]} 27. e3 {[%clk 00:25:07]}
{[%emt 00:02:29]} fxg3 {[%clk 00:14:13]} {[%emt 00:02:22]} 28. fxg3 {[%clk
00:25:18]} {[%emt 00:00:19]} e4 {[%clk 00:13:17]} {[%emt 00:01:27]} 29. Re2
{[%clk 00:20:22]} {[%emt 00:05:26]} Rde8 {[%clk 00:11:51]} {[%emt 00:01:55]} 30.
N2c3 {[%clk 00:18:56]} {[%emt 00:01:55]} Bf6 {[%clk 00:10:23]} {[%emt
00:01:59]} 31. Nb5 {[%emt 00:02:35]} Nxb5 {[%clk 00:10:38]} {[%emt 00:00:14]}
32. Qxb5 {[%clk 00:17:21]} {[%emt 00:00:03]} Ne5 {[%clk 00:10:13]} {[%emt
00:00:55]} 33. Bc3 {[%clk 00:13:33]} {[%emt 00:04:18]} Nf3+ {[%clk 00:08:52]}
{[%emt 00:01:51]} 34. Kh1 {[%clk 00:13:57]} {[%emt 00:00:06]} Bxc3 {[%clk
00:08:05]} {[%emt 00:01:17]} 35. Rxc3 {[%clk 00:14:18]} {[%emt 00:00:10]} Qe7
{[%clk 00:08:20]} {[%emt 00:00:15]} 36. Bf1 {[%clk 00:10:33]} {[%emt 00:04:15]}
Qg5 {[%clk 00:07:22]} {[%emt 00:01:27]} 37. Rg2 {[%clk 00:07:41]} {[%emt
00:03:21]} Nd4 {[%clk 00:06:21]} {[%emt 00:01:32]} 38. exd4 {[%clk 00:06:57]}
{[%emt 00:01:13]} Rxf1+ {[%clk 00:06:46]} {[%emt 00:00:05]} 39. Kh2 {[%clk
00:07:25]} {[%emt 00:00:02]} cxd4 {[%clk 00:07:07]} {[%emt 00:00:09]} 40. Rb3
{[%clk 00:07:20]} {[%emt 00:00:35]} d3 {[%clk 00:07:21]} {[%emt 00:00:16]} 41.
Qxb6 {[%clk 00:06:30]} {[%emt 00:01:19]} Qc1 {[%clk 00:07:17]} {[%emt
00:00:34]} 42. Rg1 {[%clk 00:06:03]} {[%emt 00:00:58]} Rxg1 {[%emt 00:00:57]}
0-1

[Event "Open Gent 2023 Unrated"]
[Site "Gent, Belgium"]
[Date "2023.07.15"]
[Round "2.4"]
[White "Goormachtigh, Johan"]
[Black "Van Nassau, Erik"]
[Result "1-0"]
[TimeControl "90'+30''"]
[WhiteTitle "FM"]
[WhiteElo "2183"]
[BlackElo "1934"]

1. d4 {[%clk 01:30:55]} d5 {[%clk 01:30:39]} 2. Nf3 {[%clk 01:31:05]} {[%emt
21:23:24]} Nf6 {[%clk 01:27:42]} {[%emt 00:00:55]} 3. c4 {[%clk 01:31:21]}
{[%emt 00:00:15]} e6 {[%clk 01:28:07]} {[%emt 00:00:05]} 4. Nc3 {[%clk
01:31:45]} {[%emt 00:00:06]} Be7 {[%clk 01:28:27]} {[%emt 00:00:10]} 5. Bf4
{[%clk 01:31:22]} {[%emt 00:00:53]} O-O {[%clk 01:28:16]} {[%emt 00:00:41]} 6.
e3 {[%clk 01:31:44]} {[%emt 00:00:08]} b6 {[%clk 01:22:48]} {[%emt 00:05:59]} 7.
Rc1 {[%clk 01:27:18]} {[%emt 00:04:56]} c5 {[%clk 01:10:53]} {[%emt 00:12:25]}
8. dxc5 {[%clk 01:26:55]} {[%emt 00:00:52]} Bxc5 {[%clk 01:10:23]} {[%emt
00:01:00]} 9. cxd5 {[%clk 01:23:35]} {[%emt 00:03:50]} Nxd5 {[%clk 01:07:31]}
{[%emt 00:03:22]} 10. Nxd5 {[%clk 01:23:01]} {[%emt 00:01:03]} Qxd5 {[%clk
01:06:31]} {[%emt 00:01:31]} 11. Qxd5 {[%clk 01:21:39]} {[%emt 00:01:52]} exd5
{[%clk 01:06:53]} {[%emt 00:00:08]} 12. a3 {[%clk 01:22:01]} {[%emt 00:00:08]}
a5 {[%clk 01:01:09]} {[%emt 00:06:14]} 13. Be2 {[%clk 01:04:23]} {[%emt
00:18:08]} Bf5 {[%clk 00:54:26]} {[%emt 00:07:13]} 14. O-O {[%clk 01:03:51]}
{[%emt 00:01:03]} Nc6 {[%clk 00:49:35]} {[%emt 00:05:22]} 15. Bb5 {[%clk
00:57:40]} {[%emt 00:06:40]} Ne7 {[%clk 00:42:42]} {[%emt 00:07:23]} 16. Nd4
{[%clk 00:53:34]} {[%emt 00:04:36]} Be6 {[%clk 00:25:03]} {[%emt 00:18:09]} 17.
Nb3 {[%clk 00:49:20]} {[%emt 00:04:44]} Rfc8 {[%clk 00:24:03]} {[%emt
00:01:31]} 18. Nxc5 {[%clk 00:49:28]} {[%emt 00:00:22]} bxc5 {[%clk 00:20:47]}
{[%emt 00:03:46]} 19. Bd6 {[%clk 00:49:34]} {[%emt 00:00:22]} Ra7 {[%clk
00:19:24]} {[%emt 00:01:54]} 20. Rxc5 {[%clk 00:48:36]} {[%emt 00:01:28]} Rb7
{[%clk 00:18:28]} {[%emt 00:01:27]} 21. a4 {[%clk 00:42:48]} {[%emt 00:06:17]}
Nf5 {[%clk 00:15:49]} {[%emt 00:03:09]} 22. Rxc8+ {[%clk 00:42:24]} {[%emt
00:00:55]} Bxc8 {[%clk 00:16:12]} {[%emt 00:00:06]} 23. Be5 {[%clk 00:42:30]}
{[%emt 00:00:22]} f6 {[%clk 00:15:34]} {[%emt 00:01:10]} 24. Bc3 {[%clk
00:42:04]} {[%emt 00:00:56]} Bd7 {[%clk 00:15:14]} {[%emt 00:00:50]} 25. Bxd7
{[%clk 00:41:23]} {[%emt 00:01:10]} Rxd7 {[%clk 00:15:36]} {[%emt 00:00:09]} 26.
Rd1 {[%clk 00:41:46]} {[%emt 00:00:07]} 1-0